[Event "EICC 2025"]
[Site "Eforie-Nord"]
[Date "2025.03.16"]
[Round "2.20"]
[White "Kilic, Eray"]
[Black "Hovhannisyan, Robert"]
[Result "1/2-1/2"]
[Annotator "TA"]
[ECO "C47"]
[WhiteElo "2459"]
[BlackElo "2630"]
[PlyCount "67"]
[EventDate "2025.03.14"]
[EventType "swiss"]
[EventCountry "ROU"]
[SourceTitle "playchess.com"]
[Source "ChessBase"]
[SourceQuality "1"]
[TimeControl "40/5400+30:1800+30"]

{[%evp 9,67,0,0,0,0,0,0,0,0,-9,-8,0,0,-7,0,-7,5,-8,0,-2,-7,-14,-5,-12,-13,-20,0,-14,0,0,0,0,12,9,12,0,12,12,12,12,12,12,16,12,17,13,20,24,49,45,45,45,45,45,40,40,41,0,40,22]} 1. e4 {[%emt 0:00:03]} e5 {[%emt 0:00:11]} 2. Nf3 {[%emt 0:00:05]} Nc6 {[%emt 0:00:05]} 3. Nc3 {[%emt 0:00:20]} Nf6 {[%emt 0:00:07]} 4. a3 {[%emt 0:00:03]} d5 {[%emt 0:01:56]} 5. Bb5 {[%emt 0:00:22]} Nxe4 {[%emt 0:00:45]} 6. Qe2 {[%emt 0:00:04] C47: Scotch Four Knights and Four Knights with 4 g3.} Qd6 {[%emt 0:02:05]} 7. Nxe4 {[%emt 0:00:23]} dxe4 {[%emt 0:00:06]} 8. Qxe4 {[%emt 0:00:04] The position is equal.} Bd7 $1 {[%emt 0:00:52]} 9. d4 {[%emt 0:00:04][%cal Rd4e5]} f5 {[%emt 0:02:16]} 10. Qe2 {[%emt 0:03:14]} e4 {[%emt 0:00:10]} 11. Bxc6 {[%emt 0:00:04]} Qxc6 {[%emt 0:00:55]} 12. Ne5 {[%emt 0:01:52]} Qe6 {[%emt 0:00:50]} 13. Bf4 $146 {[%emt 0:10:05]} (13. Bg5 Bd6 14. Nxd7 Qxd7 15. f3 O-O 16. fxe4 fxe4 17. O-O-O Qf5 18. Be3 b5 19. Rdf1 {0-1 Heydarova,A (1637)-Schulze,L (2250) EU-ch Hybrid U20 Girls 2021 (4)}) 13... O-O-O {[%emt 0:01:30]} 14. O-O-O {[%emt 0:07:04]} Qa2 {[%emt 0:01:45] [#] ...Be6 would now be deadly.} 15. Qc4 {[%emt 0:02:34] Active counter play!} Qxc4 {[%emt 0:00:16]} 16. Nxc4 {[%emt 0:00:06]} Be6 {[%emt 0:06:30]} 17. Ne3 {[%emt 0:05:36]} g6 {[%emt 0:09:06]} 18. d5 {[%emt 0:14:01]} Bf7 {[%emt 0:02:01]} 19. c4 {[%emt 0:03:05]} h5 {[%emt 0:10:48]} 20. h4 {[%emt 0:06:50]} a5 {[%emt 0:00:42]} 21. Rd2 {[%emt 0:04:03]} Bc5 {[%emt 0:03:34]} 22. g3 {[%emt 0:02:41]} b6 {[%emt 0:10:55]} 23. Rhd1 {[%emt 0:04:54]} a4 {[%emt 0:02:37]} 24. Nc2 {[%emt 0:05:23][%cal Be3c2,Bc2d4,Bd4e6][%mdl 32]} Kb7 {[%emt 0:06:08]} 25. Nd4 {[%emt 0:01:05]} Rc8 {[%emt 0:01:44]} 26. Kc2 {[%emt 0:03:47][%cal Bc1c2,Bc2c3,Bc3d4,Bd4c5,Bc5b4][%mdl 32]} Rh7 {[%emt 0:05:08]} 27. Kc3 {[%emt 0:02:42]} Be8 {[%emt 0:08:19]} 28. Ne6 {[%emt 0:02:22]} Bd6 {[%emt 0:03:15]} 29. Kd4 {[%emt 0:02:35]} Rd7 {[%emt 0:05:58]} 30. c5 {[%emt 0:04:00]} bxc5+ {[%emt 0:00:32]} 31. Nxc5+ {[%emt 0:00:05]} Bxc5+ {[%emt 0:00:03]} 32. Kxc5 {[%emt 0:00:04]} Ra8 {[%emt 0:01:10]} 33. Kb4 {[%emt 0:05:39]} Rb8 {[%emt 0:06:06]} 34. Kc3 {[%emt 0:03:00] Weighted Error Value: White=0.04 (flawless) /Black=0.05 (flawless)   Inaccurate:     	White=1     	Black=1      OK:         	White=15    	Black=12     Strong:       	---       	Black=1} 1/2-1/2

[Event "EICC 2025"]
[Site "Eforie-Nord"]
[Date "2025.03.16"]
[Round "2.20"]
[White "Shohat, Yotam"]
[Black "Amar, Elham"]
[Result "1/2-1/2"]
[Annotator "ChessBase"]
[ECO "B90"]
[WhiteElo "2386"]
[BlackElo "2533"]
[PlyCount "86"]
[EventDate "2025.03.14"]
[EventType "swiss"]
[EventCountry "ROU"]
[SourceTitle "playchess.com"]
[Source "ChessBase"]
[SourceQuality "1"]
[TimeControl "40/5400+30:1800+30"]

1. e4 {[%emt 0:00:03]} c5 {[%emt 0:00:10]} 2. Nf3 {[%emt 0:00:05]} d6 {[%emt 0:00:07]} 3. d4 {[%emt 0:00:04]} cxd4 {[%emt 0:00:10]} 4. Nxd4 {[%emt 0:00:04]} Nf6 {[%emt 0:00:09]} 5. Nc3 {[%emt 0:00:03]} a6 {[%emt 0:00:08]} 6. Be3 {[%emt 0:00:04]} e5 {[%emt 0:00:10]} 7. Nb3 {[%emt 0:00:04]} Be6 {[%emt 0:00:35]} 8. f3 {[%emt 0:00:06]} Be7 {[%emt 0:00:40]} 9. Qd2 {[%emt 0:00:12]} h5 {[%emt 0:00:16]} 10. Be2 {[%emt 0:00:13]} Nbd7 {[%emt 0:01:04]} 11. Nd5 {[%emt 0:00:07]} Nxd5 {[%emt 0:00:23]} 12. exd5 {[%emt 0:01:10]} Bf5 {[%emt 0:00:08]} 13. O-O {[%emt 0:00:05]} O-O {[%emt 0:00:26]} 14. Na5 {[%emt 0:00:08]} Qc8 {[%emt 0:00:11]} 15. Rac1 {[%emt 0:04:38]} Bd8 {[%emt 0:00:13]} 16. h3 {[%emt 0:25:23]} h4 {[%emt 0:11:47]} 17. Nc4 {[%emt 0:11:12]} Qb8 {[%emt 0:00:45]} 18. Bf2 {[%emt 0:07:38]} Bg6 {[%emt 0:12:29]} 19. Qb4 {[%emt 0:05:28]} Bg5 {[%emt 0:13:36]} 20. Ra1 {[%emt 0:01:47]} Be7 {[%emt 0:06:04]} 21. c3 {[%emt 0:08:55]} Qc7 {[%emt 0:03:14]} 22. a4 {[%emt 0:05:53]} Rae8 {[%emt 0:07:08]} 23. Rfd1 {[%emt 0:07:58]} f5 {[%emt 0:03:38]} 24. Re1 {[%emt 0:09:25]} Nf6 {[%emt 0:05:52]} 25. Rad1 {[%emt 0:00:23]} Bf7 {[%emt 0:04:09]} 26. Ne3 {[%emt 0:04:10]} f4 {[%emt 0:04:30]} 27. Nf5 {[%emt 0:00:21]} Nxd5 {[%emt 0:00:48]} 28. Qa3 {[%emt 0:03:14]} Rd8 {[%emt 0:07:28]} 29. Bd3 {[%emt 0:00:06]} Be6 {[%emt 0:02:25]} 30. Nxh4 {[%emt 0:02:46]} Ne3 {[%emt 0:00:37]} 31. Bxe3 {[%emt 0:01:06]} d5 {[%emt 0:02:03]} 32. b4 {[%emt 0:01:55]} Bxh4 {[%emt 0:03:15]} 33. Bf2 {[%emt 0:00:01]} Bxf2+ {[%emt 0:00:59]} 34. Kxf2 {[%emt 0:00:01]} e4 {[%emt 0:02:35]} 35. Bb1 {[%emt 0:00:13]} Qe7 {[%emt 0:01:36]} 36. Qb2 {[%emt 0:01:24]} exf3 {[%emt 0:04:16]} 37. Kg1 {[%emt 0:01:05]} Rd6 {[%emt 0:01:47]} 38. gxf3 {[%emt 0:00:59]} Qh4 {[%emt 0:00:09]} 39. Qf2 {[%emt 0:00:23]} Qxh3 {[%emt 0:00:31]} 40. Qh2 {[%emt 0:00:42]} Qxf3 {[%emt 0:03:26]} 41. Qh7+ {[%emt 0:13:56]} Kf7 {[%emt 0:00:00]} 42. Qg6+ {[%emt 0:00:57]} Kg8 {[%emt 0:00:00]} 43. Qh7+ {[%emt 0:04:06]} Kf7 {[%emt 0:00:00]} 1/2-1/2

[Event "EICC 2025"]
[Site "Eforie-Nord"]
[Date "2025.03.16"]
[Round "2.21"]
[White "Chigaev, Maksim"]
[Black "Koelle, Tobias"]
[Result "1-0"]
[Annotator "TA"]
[ECO "B56"]
[WhiteElo "2629"]
[BlackElo "2453"]
[PlyCount "135"]
[EventDate "2025.03.14"]
[EventType "swiss"]
[EventCountry "ROU"]
[SourceTitle "playchess.com"]
[Source "ChessBase"]
[SourceQuality "1"]
[TimeControl "40/5400+30:1800+30"]

{[%evp 12,135,21,20,21,18,18,18,23,10,22,21,14,0,0,-6,-12,-10,0,0,6,-12,0,-52,-10,-27,-35,-39,-35,-53,0,0,0,0,0,0,0,0,0,0,0,0,0,0,0,0,0,0,54,55,47,48,72,59,78,51,57,58,112,111,136,135,218,201,200,195,214,209,280,218,266,264,251,216,224,219,209,200,197,189,198,206,243,206,169,143,307,305,298,246,352,352,352,346,395,387,493,493,478,478,460,427,486,495,520,398,1039,1288,1417,1349,2211,2051,5911,5738,5385,4934,29980,29981,29987,29988,29988,29989,29989,29990,29991,29990]} 1. e4 {[%emt 0:00:08]} c5 {[%emt 0:00:08]} 2. Nf3 {[%emt 0:00:07]} d6 {[%emt 0:00:05]} 3. d4 {[%emt 0:00:08]} cxd4 {[%emt 0:00:05]} 4. Nxd4 {[%emt 0:00:05]} Nf6 {[%emt 0:00:05]} 5. Nc3 {[%emt 0:00:06]} e5 {[%emt 0:00:05]} 6. Nf3 {[%emt 0:04:06]} Be7 {[%emt 0:00:46]} 7. Bc4 {[%emt 0:06:59]} Be6 {[%emt 0:01:17] B56: Classical Sicilian: Unusual Lines.} 8. Bb3 {[%emt 0:00:25]} O-O {[%emt 0:00:33]} 9. O-O {[%emt 0:00:13]} Nbd7 {[%emt 0:06:27][%cal Bb8d7,Bd7c5,Bc5a6,Ba6c7][%mdl 32] The position is equal.} 10. Bxe6 {[%emt 0:04:44]} fxe6 {[%emt 0:00:14]} 11. Ng5 {[%emt 0:00:05]} Nc5 {[%emt 0:00:03]} 12. b4 {[%emt 0:00:08]} Na6 {[%emt 0:00:03]} 13. a3 {[%emt 0:12:30]} (13. Nxe6 $5 Qc8 $8 14. Nxf8 Qxc3 15. Nd7 (15. Bd2 Qc4 $15) 15... Nxd7 (15... Qxa1 $2 16. Nxf6+ Bxf6 17. Qd5+ Kh8 18. Qxb7 $18) 16. Qd5+ Kf8 17. Bd2 $17 (17. Qxb7 Qc8 $15)) 13... Nc7 $146 {[%emt 0:17:34]} (13... h6 14. Nxe6 Qc8 15. Nxf8 Qxc3 16. Bd2 Qc4 17. Ng6 Bd8 18. Be3 Qxe4 19. Qd3 Kf7 {1-0 Sjugirov,S (2651)-Gokerkan,C (2490) Titled Tuesday intern op 06th Aug Late blitz 2024 (4)}) 14. Qd3 {[%emt 0:02:49]} h6 {[%emt 0:03:55]} 15. Nf3 {[%emt 0:01:11]} Qe8 {[%emt 0:01:56]} 16. Bd2 {[%emt 0:12:45]} Rc8 {[%emt 0:06:47]} 17. a4 {[%emt 0:06:50]} (17. Rfe1 $11) 17... a6 {[%emt 0:04:21]} 18. b5 {[%emt 0:03:30]} Nd7 {[%emt 0:06:58]} 19. Be3 {[%emt 0:05:42]} Qg6 {[%emt 0:18:54]} 20. Kh1 {[%emt 0:05:01] [#]} d5 {[%emt 0:06:29]} 21. b6 $11 {[%emt 0:02:13]} dxe4 {[%emt 0:04:44]} (21... Rxf3 22. gxf3 Ne8 23. Nxd5 (23. exd5 Qxd3 24. cxd3 Rxc3 $15) 23... exd5 24. Qxd5+ Qf7 25. Qxd7 $18) 22. Qxd7 {[%emt 0:13:20]} (22. Qxe4 Qxe4 23. Nxe4 Nd5 $17) 22... exf3 {[%emt 0:00:04][%csl Gf3][%cal Rg6g2]} 23. Rg1 {[%emt 0:01:10] Active counter play!} Bb4 $1 {[%emt 0:05:43]} (23... Qxc2 $2 24. Qxe7 (24. bxc7 Qxc3 25. Qxe6+ Kh8 $18) 24... Rfe8 25. Qd6 Qxc3 26. Rac1 $18 (26. bxc7 fxg2+ 27. Kxg2 Qxc7 $18)) (23... fxg2+ $2 24. Rxg2 Qe8 25. Rd1 Qxd7 26. Rxd7 $18) 24. Na2 {[%emt 0:01:28][%cal Bc3a2,Ba2b4,Bb4d3,Bd3e1][%mdl 32]} Rfd8 {[%emt 0:02:41]} 25. Qxd8+ {[%emt 0:01:43]} Rxd8 {[%emt 0:00:02]} 26. bxc7 {[%emt 0:00:07]} Rc8 {[%emt 0:00:18]} (26... fxg2+ $2 27. Rxg2 Qf6 28. cxd8=B $18 (28. cxd8=R+ Qxd8 29. Nxb4 Qh4 $18) (28. cxd8=N Be7 $18)) 27. Nxb4 {[%emt 0:00:45]} Rxc7 {[%emt 0:03:03]} 28. gxf3 {[%emt 0:00:52]} Qf6 {[%emt 0:00:07]} 29. Nd3 $1 {[%emt 0:06:07]} Rxc2 {[%emt 0:01:45]} (29... Qxf3+ $11 30. Rg2 Qe4 (30... Rxc2 $2 31. Ne1 $18)) 30. Ne1 $1 $14 {[%emt 0:00:16]} Rc7 {[%emt 0:01:17]} 31. Rb1 {[%emt 0:00:52]} Kh7 {[%emt 0:01:19] Black is weak on the dark squares} 32. a5 {[%emt 0:00:57]} Qf8 {[%emt 0:03:22]} 33. Rd1 {[%emt 0:01:19]} Rf7 {[%emt 0:03:27]} 34. Bb6 {[%emt 0:00:17]} Qe7 {[%emt 0:01:22]} ({Black should play} 34... Qb4 $14) 35. Rd3 $16 {[%emt 0:00:41]} Qb4 {[%emt 0:00:53] [#]} 36. Re3 $1 {[%emt 0:00:37][%cal Oe1d3]} Rf5 {[%emt 0:00:57]} (36... Qf8 $16 37. Rg4 (37. Rxe5 Qd6 $18) 37... Rf4) 37. Nd3 $18 {[%emt 0:03:15][%csl LRb4,LRe5]} Qf8 {[%emt 0:00:10]} 38. Rg3 {[%emt 0:01:49]} ({And not} 38. Nxe5 Rxe5 39. Rxe5 Qxf3+ 40. Rg2 Qd1+ 41. Rg1 Qf3+ 42. Rg2 Qd1+ 43. Rg1 Qf3+ $11) (38. Rxe5 Rxf3 39. Ne1 Rh3) 38... Qd6 {[%emt 0:00:36]} 39. Kg2 {[%emt 0:00:21]} h5 {[%emt 0:00:47]} 40. h4 {[%emt 0:00:28]} Qe7 {[%emt 0:00:24]} 41. Nxe5 {[%emt 0:33:05]} (41. Rxe5 Rxe5 42. Nxe5 Qxh4) 41... Qxh4 {[%emt 0:02:41]} 42. Re4 {[%emt 0:00:00]} Qf6 {[%emt 0:06:15]} 43. Ng6 {[%emt 0:00:00]} Rg5 {[%emt 0:07:33] [#]} 44. Nf8+ {[%emt 0:00:00][%mdl 512]} Kg8 {[%emt 0:00:05]} 45. Nxe6 {[%emt 0:00:00]} Rxg3+ {[%emt 0:00:19]} 46. fxg3 {[%emt 0:00:00]} g5 {[%emt 0:05:15]} 47. Nd4 {[%emt 0:00:00]} Qd6 {[%emt 0:02:37]} 48. g4 {[%emt 0:00:00]} hxg4 {[%emt 0:02:34] A mistake that costs the game.} (48... h4 $16) 49. Rxg4 {[%emt 0:00:00]} Qd5 {[%emt 0:00:26]} 50. Ne2 {[%emt 0:00:00]} Kf7 {[%emt 0:01:32]} (50... Kh7 $142 51. Kf2 Qe5) 51. Ng3 {[%emt 0:00:00]} Qd2+ {[%emt 0:00:15]} 52. Kh3 {[%emt 0:00:00]} Qc1 {[%emt 0:01:48]} 53. Ne4 {[%emt 0:00:00]} Qf1+ {[%emt 0:00:48]} 54. Kg3 {[%emt 0:00:00]} Qe1+ {[%emt 0:00:44]} 55. Kg2 {[%emt 0:00:00]} Qe2+ {[%emt 0:00:11]} 56. Bf2 {[%emt 0:00:00]} Qa2 {[%emt 0:00:52]} 57. Rxg5 {[%emt 0:00:00]} ({Less strong is} 57. Nxg5+ Ke7 58. Ne4 Qxa5 59. Rg7+ Ke6 60. Rxb7 Qa2 $18) 57... Ke6 {[%emt 0:00:12] Dodges Re5+} 58. Kg3 {[%emt 0:00:00]} Qa1 $2 {[%emt 0:00:43]} (58... Kd7 59. Rg7+ Kc6) 59. f4 {[%emt 0:00:00][%cal Bf3f4,Bf4f5][%mdl 32]} Qb1 {[%emt 0:01:18]} 60. Re5+ {[%emt 0:00:00]} Kf7 {[%emt 0:00:05]} 61. f5 {[%emt 0:00:00] aiming for Nd6+.} Qb2 {[%emt 0:00:36]} 62. Ng5+ {[%emt 0:00:00]} Kf6 {[%emt 0:00:10]} 63. Nf3 {[%emt 0:00:00]} Qa2 {[%emt 0:02:09]} 64. Bd4 {[%emt 0:00:00] White mates.} Qg8+ {[%emt 0:01:40]} 65. Kf4 {[%emt 0:00:00]} Qb8 {[%emt 0:00:02]} 66. Ke4 {[%emt 0:00:00]} Kf7 {[%emt 0:00:36]} 67. Ng5+ {[%emt 0:00:00]} Kg8 {[%emt 0:00:11]} 68. f6 {[%emt 0:00:00] Weighted Error Value: White=0.12 (very precise) /Black=0.45  Loses game:     	---       	Black=1      Mistake:       	White=1     	Black=6      Inaccurate:     	White=1     	Black=2      OK:         	White=25    	Black=19     Best:        	White=4     	Black=4      Strong:       	White=3     	Black=1} 1-0

[Event "EICC 2025"]
[Site "Eforie-Nord"]
[Date "2025.03.16"]
[Round "2.21"]
[White "Paichadze, Luka"]
[Black "Dehtiarov, Roman"]
[Result "0-1"]
[Annotator "ChessBase"]
[ECO "C77"]
[WhiteElo "2532"]
[BlackElo "2376"]
[PlyCount "52"]
[EventDate "2025.03.14"]
[EventType "swiss"]
[EventCountry "ROU"]
[SourceTitle "playchess.com"]
[Source "ChessBase"]
[SourceQuality "1"]
[TimeControl "40/5400+30:1800+30"]

1. e4 {[%emt 0:00:10]} e5 {[%emt 0:00:08]} 2. Nf3 {[%emt 0:00:05]} Nc6 {[%emt 0:00:08]} 3. Bb5 {[%emt 0:00:15]} a6 {[%emt 0:00:38]} 4. Ba4 {[%emt 0:00:15]} Nf6 {[%emt 0:00:10]} 5. d3 {[%emt 0:01:09]} d6 {[%emt 0:01:12]} 6. c4 {[%emt 0:00:15]} g6 {[%emt 0:01:14]} 7. Nc3 {[%emt 0:00:30]} Bg7 {[%emt 0:01:07]} 8. Nd5 {[%emt 0:00:45]} h6 {[%emt 0:05:07]} 9. O-O {[%emt 0:05:57]} O-O {[%emt 0:04:19]} 10. h3 {[%emt 0:07:56]} Rb8 {[%emt 0:06:43]} 11. Be3 {[%emt 0:09:04]} b5 {[%emt 0:04:45]} 12. Bc2 {[%emt 0:12:26]} bxc4 {[%emt 0:21:30]} 13. dxc4 {[%emt 0:01:35]} Nxd5 {[%emt 0:03:42]} 14. cxd5 {[%emt 0:00:08]} Nb4 {[%emt 0:00:12]} 15. Bb1 {[%emt 0:03:18]} a5 {[%emt 0:01:16]} 16. a3 {[%emt 0:04:19]} Na6 {[%emt 0:00:09]} 17. Nd2 {[%emt 0:04:17]} f5 {[%emt 0:03:45]} 18. f3 {[%emt 0:06:37]} Nc5 {[%emt 0:00:25]} 19. Bxc5 {[%emt 0:04:06]} dxc5 {[%emt 0:00:02]} 20. Nb3 {[%emt 0:11:25]} Qg5 {[%emt 0:03:09]} 21. Rf2 {[%emt 0:02:04]} Qe3 {[%emt 0:02:13]} 22. Nxa5 {[%emt 0:00:27]} Rxb2 {[%emt 0:04:49]} 23. Bc2 {[%emt 0:00:30]} Ba6 {[%emt 0:03:57]} 24. Qe1 {[%emt 0:24:57]} f4 {[%emt 0:01:12]} 25. Ba4 {[%emt 0:00:00]} Re2 {[%emt 0:00:28]} 26. Qf1 {[%emt 0:00:00]} Bf6 {[%emt 0:00:13]} 0-1

[Event "EICC 2025"]
[Site "Eforie-Nord"]
[Date "2025.03.16"]
[Round "2.22"]
[White "Sanikidze, Tornike"]
[Black "Ponomariov, Ruslan"]
[Result "1/2-1/2"]
[Annotator "TA"]
[ECO "D24"]
[WhiteElo "2452"]
[BlackElo "2628"]
[PlyCount "35"]
[EventDate "2025.03.14"]
[EventType "swiss"]
[EventCountry "ROU"]
[SourceTitle "playchess.com"]
[Source "ChessBase"]
[SourceQuality "1"]
[TimeControl "40/5400+30:1800+30"]

{[%evp 9,35,30,43,46,50,47,58,52,45,54,52,45,39,43,61,37,31,18,15,15,32,12,46,0,24,0,45,0]} 1. d4 {[%emt 0:00:06]} Nf6 {[%emt 0:00:39]} 2. c4 {[%emt 0:00:34]} e6 {[%emt 0:00:15]} 3. Nf3 {[%emt 0:00:48]} d5 {[%emt 0:00:54]} 4. Nc3 {[%emt 0:01:40]} dxc4 {[%emt 0:00:48]} 5. e4 {[%emt 0:03:41][%cal Be2e4,Be4e5][%mdl 32]} b5 {[%emt 0:00:37]} 6. e5 {[%emt 0:01:23] D24: Queen's Gambit Accepted: 3 Nf3 Nf6 4 Nc3.} Nd5 {[%emt 0:00:08]} 7. Nxb5 {[%emt 0:00:14]} Nb6 {[%emt 0:00:09]} 8. Be2 {[%emt 0:02:21]} Nc6 {[%emt 0:01:06][%cal Bb8c6,Bc6b4,Bb4d3][%mdl 32]} 9. O-O {[%emt 0:01:26]} Be7 {[%emt 0:00:25] Repels Bg5} 10. Be3 {[%emt 0:01:02]} O-O {[%emt 0:01:50]} 11. Nc3 {[%emt 0:13:18]} Rb8 {[%emt 0:16:31]} 12. Qc1 {[%emt 0:08:55]} Nb4 {[%emt 0:22:33]} 13. Nd2 {[%emt 0:13:31]} Ba6 {[%emt 0:04:19]} 14. Rd1 {[%emt 0:10:26]} Nd3 $146 {[%emt 0:20:10]} (14... Qd7 15. Nde4 Kh8 16. a3 Nd3 17. Qd2 Nd5 18. b4 f5 19. exf6 gxf6 20. Nxd5 exd5 21. Ng3 Bd6 22. Bxd3 cxd3 23. Bf4 Qg4 24. Bxd6 cxd6 {0-1 Lamard,G (2480)-Erigaisi,A (2597) Guimaraes op 2021 (6)}) 15. Qc2 {[%emt 0:13:13]} Nb4 {[%emt 0:00:35]} 16. Qc1 {[%emt 0:01:33]} Nd3 {[%emt 0:01:46]} 17. Qc2 {[%emt 0:02:38]} (17. Bxd3 $5 cxd3 $8 18. b3 $14) 17... Nb4 {[%emt 0:00:29]} 18. Qc1 {[%emt 0:01:05] Weighted Error Value: White=0.11 (very precise) /Black=0.06 (flawless)   Inaccurate:     	White=1     	Black=1      OK:         	White=3     	Black=7      Best:        	White=1     	---} 1/2-1/2

[Event "EICC 2025"]
[Site "Eforie-Nord"]
[Date "2025.03.16"]
[Round "2.22"]
[White "Pastar, Slaven"]
[Black "Bernadskiy, Vitaliy"]
[Result "1/2-1/2"]
[Annotator "ChessBase"]
[ECO "A04"]
[WhiteElo "2377"]
[BlackElo "2529"]
[PlyCount "90"]
[EventDate "2025.03.14"]
[EventType "swiss"]
[EventCountry "ROU"]
[SourceTitle "playchess.com"]
[Source "ChessBase"]
[SourceQuality "1"]
[TimeControl "40/5400+30:1800+30"]

1. Nf3 {[%emt 0:00:06]} e6 {[%emt 0:01:12]} 2. b3 {[%emt 0:07:35]} b6 {[%emt 0:01:17]} 3. g3 {[%emt 0:03:50]} Bb7 {[%emt 0:01:50]} 4. Bg2 {[%emt 0:00:11]} Nf6 {[%emt 0:00:39]} 5. O-O {[%emt 0:01:47]} d5 {[%emt 0:01:10]} 6. Bb2 {[%emt 0:08:32]} Bd6 {[%emt 1:27:22]} 7. c4 {[%emt 0:01:03]} Nbd7 {[%emt 0:00:30]} 8. cxd5 {[%emt 0:02:51]} exd5 {[%emt 0:00:00]} 9. Nc3 {[%emt 0:11:38]} a6 {[%emt 0:01:00]} 10. e3 {[%emt 0:57:57]} Nc5 {[%emt 0:00:00]} 11. Qc2 {[%emt 0:00:00]} O-O {[%emt 0:00:00]} 12. Ng5 {[%emt 0:00:00]} g6 {[%emt 0:00:00]} 13. Ne2 {[%emt 0:00:00]} Be7 {[%emt 0:00:00]} 14. Rac1 {[%emt 0:00:00]} a5 {[%emt 0:00:00]} 15. Nf4 {[%emt 0:00:00]} Ne8 {[%emt 0:00:00]} 16. h4 {[%emt 0:00:00]} Bf6 {[%emt 0:00:00]} 17. Bxf6 {[%emt 0:00:00]} Nxf6 {[%emt 0:00:00]} 18. d4 {[%emt 0:00:00]} Na6 {[%emt 0:00:00]} 19. Nd3 {[%emt 0:00:00]} Ne4 {[%emt 0:00:00]} 20. Nxe4 {[%emt 0:00:00]} dxe4 {[%emt 0:00:00]} 21. Ne5 {[%emt 0:00:00]} f5 {[%emt 0:00:00]} 22. Nc6 {[%emt 0:00:00]} Qd6 {[%emt 0:00:00]} 23. Rfd1 {[%emt 0:00:00]} Rf6 {[%emt 0:00:00]} 24. Ne5 {[%emt 0:00:04]} c5 {[%emt 0:00:00]} 25. Qb2 {[%emt 0:01:24]} Re8 {[%emt 0:00:00]} 26. Nc4 {[%emt 0:00:43]} Qf8 {[%emt 0:00:00]} 27. dxc5 {[%emt 0:02:09]} Nxc5 {[%emt 0:00:00]} 28. Bf1 {[%emt 0:03:26]} Ba6 {[%emt 0:00:00]} 29. Qd4 {[%emt 0:00:56]} Bxc4 {[%emt 0:00:00]} 30. Bxc4+ {[%emt 0:00:04]} Kg7 {[%emt 0:00:00]} 31. a3 {[%emt 0:00:36]} Kh6 {[%emt 0:00:00]} 32. b4 {[%emt 0:00:42]} axb4 {[%emt 0:00:00]} 33. axb4 {[%emt 0:00:02]} Nb7 {[%emt 0:00:00]} 34. Bb5 {[%emt 0:01:07]} Rd6 {[%emt 0:00:00]} 35. Qc3 {[%emt 0:00:43]} Red8 {[%emt 0:00:00]} 36. Rxd6 {[%emt 0:00:16]} Nxd6 {[%emt 0:00:00]} 37. Qe5 {[%emt 0:00:45]} Nxb5 {[%emt 0:00:00]} 38. Qf4+ {[%emt 0:00:22]} Kg7 {[%emt 0:00:00]} 39. Qe5+ {[%emt 0:00:05]} Qf6 {[%emt 0:00:00]} 40. Qxb5 {[%emt 0:00:00]} Kh6 {[%emt 0:00:00]} 41. Qc6 {[%emt 0:07:08]} Rd1+ {[%emt 0:00:00]} 42. Kg2 {[%emt 0:06:30]} Qd8 {[%emt 0:00:00]} 43. Rxd1 {[%emt 0:01:37]} Qxd1 {[%emt 0:00:00]} 44. Qxb6 {[%emt 0:00:24]} Qf3+ {[%emt 0:00:00]} 45. Kg1 {[%emt 0:00:06]} Qd1+ {[%emt 0:00:00]} 1/2-1/2